bitfinex-derivatives/quotes_SOLF0:USTF0_20241010
["timestamp","ask_amount","ask_price","bid_price","bid_amount"]
[1728574003839,3.6481,137.19,137.16,3.6487]
[1728574005141,9.0938,137.21,137.15,0.12502]
[1728574005340,3.6484,137.18,137.15,3.77392]
[1728574007533,2.7738,137.21,137.15,0.12502]
[1728574007730,2.7738,137.21,137.16,17.53]
[1728574009343,6.4215,137.21,137.18,3.6481]
[1728574010142,2.7738,137.21,137.18,3.6481]
[1728574010344,3.6481,137.19,137.16,3.6486]
[1728574010543,3.6481,137.19,137.15,0.12502]
[1728574010841,3.6478,137.2,137.16,3.6486]
[1728574011044,1.3747,137.24,137.15,17.65502]
[1728574011232,1.3747,137.24,137.19,17.53]
[1728574011432,103.43909517,137.25,137.23,3.6469]
[1728574011666,103.43909517,137.25,137.19,17.53]
[1728574012543,2.7139,137.26,137.19,23.85]
[1728574012930,6.3602,137.26,137.23,3.6468]
[1728574013139,2.7139,137.26,137.23,3.6468]
[1728574013446,2.7139,137.26,137.19,23.85]
[1728574013740,3.647,137.23,137.19,23.85]
[1728574013941,2.7139,137.26,137.19,23.85]
[1728574014139,4.0893,137.26,137.19,23.85]
[1728574014350,4.0893,137.26,137.18,6.32]
[1728574014941,3.6474,137.22,137.18,6.32]
[1728574015143,4.0893,137.26,137.19,17.53]
[1728574015543,3.6468,137.24,137.21,3.6474]
[1728574016246,3.6469,137.23,137.21,3.6474]
[1728574016446,4.0893,137.26,137.21,3.6474]
[1728574016948,3.6468,137.24,137.21,3.6474]
[1728574017241,4.0893,137.26,137.21,3.6474]
[1728574017445,3.647,137.23,137.21,3.6474]
[1728574018647,3.6468,137.24,137.21,3.6473]
[1728574019247,3.6468,137.24,137.22,3.6472]
[1728574019448,2.7139,137.26,137.2,17.53]
[1728574019751,0.12502,137.27,137.21,3.5890748]
[1728574019940,0.12502,137.27,137.22,6.3]
[1728574020248,3.6463,137.26,137.22,6.3]
[1728574020453,0.12502,137.27,137.22,6.3]
[1728574020652,0.12502,137.27,137.23,3.6468]
[1728574021250,3.6465,137.25,137.22,9.947]
[1728574021644,17.65502,137.27,137.19,17.53]
[1728574021848,17.65502,137.27,137.2,6.3]
[1728574022154,17.65502,137.27,137.21,3.6473]
[1728574022654,3.6463,137.26,137.21,3.6473]
[1728574022857,17.65502,137.27,137.21,3.6473]
[1728574023249,3.6468,137.24,137.21,3.6473]
[1728574023746,17.65502,137.27,137.21,3.6473]
[1728574024553,3.6472,137.22,137.2,9.9476]
[1728574025057,21.31202838,137.27,137.2,9.9476]
[1728574025355,3.6471,137.23,137.2,9.9476]
[1728574026557,21.31202838,137.27,137.2,9.9476]
[1728574027656,3.6471,137.23,137.2,9.9476]
[1728574029253,17.65502,137.27,137.21,3.6474]
[1728574029560,0.12502,137.27,137.22,17.53]
[1728574029950,0.12502,137.27,137.24,3.6464]
[1728574030152,0.12502,137.27,137.22,17.53]
[1728574030460,3.6463,137.26,137.23,3.6468]
[1728574033959,3.6463,137.26,137.24,3.6466]
[1728574037350,0.12502,137.27,137.24,23.83]
[1728574037559,17.53,137.35,137.26,17.53]
[1728574037859,17.53,137.35,137.29,3.6451]
[1728574037860,3.6447,137.32,137.29,3.6451]
[1728574038153,3.6447,137.32,137.28,17.53]
[1728574038358,4.3168,137.37,137.31,17.53]
[1728574038557,3.76932,137.33,137.31,17.53]
[1728574038860,0.12502,137.33,137.31,17.53]
[1728574039254,0.12502,137.33,137.31,21.1747]
[1728574039557,0.12502,137.33,137.3,6.3]
[1728574039958,3.6448,137.31,137.3,6.3]
[1728574040165,0.12502,137.33,137.24,17.53]
[1728574040358,17.53,137.32,137.25,6.3]
[1728574040966,2.8158,137.31,137.25,3.6462]
[1728574041161,2.8158,137.31,137.24,23.83]
[1728574041362,3.6455,137.29,137.26,3.6461]
[1728574041559,3.6455,137.29,137.24,23.83]
[1728574042257,2.8158,137.31,137.24,23.83]
[1728574042463,3.646,137.27,137.24,27.4766]
[1728574043768,3.646,137.27,137.24,9.9466]
[1728574044760,4.2015,137.31,137.24,6.3]
[1728574044956,4.2015,137.31,137.24,23.83]
[1728574045465,3.6455,137.29,137.26,3.6461]
[1728574045665,4.2015,137.31,137.24,23.83]
[1728574046061,3.6456,137.29,137.24,23.83]
[1728574047263,3.6456,137.29,137.26,3.646]
[1728574049270,4.2015,137.31,137.25,3.6463]
[1728574050066,3.6457,137.28,137.24,23.83]
[1728574050370,4.2015,137.31,137.26,3.6461]
[1728574050562,3.6455,137.29,137.26,3.6461]
[1728574050970,4.2015,137.31,137.24,23.83]
[1728574051171,3.6458,137.28,137.25,3.6463]
[1728574052776,3.6462,137.26,137.24,9.9465]
[1728574053670,3.6462,137.26,137.22,17.53]
[1728574053671,3.6467,137.24,137.22,21.1771]
[1728574053874,17.53,137.28,137.22,6.3]
[1728574054068,17.53,137.28,137.21,0.12502]
[1728574054265,3.6471,137.23,137.21,0.12502]
[1728574054463,17.53,137.28,137.21,0.12502]
[1728574055774,3.6471,137.23,137.21,0.12502]
[1728574056377,3.6472,137.22,137.21,0.12502]
[1728574061379,17.53,137.24,137.15,17.65502]
[1728574061679,17.53,137.22,137.15,0.12502]
[1728574062083,3.6486,137.17,137.15,0.12502]
[1728574067278,3.6488,137.16,137.15,0.12502]
[1728574067483,3.6488,137.16,137.09,6.42502]
[1728574067484,1.3836,137.16,137.09,6.42502]
[1728574067785,3.6497,137.13,137.1,3.6502]
[1728574070874,3.6497,137.13,137.09,21.36452236]
[1728574071085,3.6494,137.14,137.12,3.6499]
[1728574071580,5.0326,137.16,137.13,3.6494]
[1728574071883,5.0326,137.16,137.09,3.83452236]
[1728574071884,3.649,137.16,137.12,17.53]
[1728574072084,3.649,137.16,137.12,23.83]
[1728574072683,3.6486,137.17,137.15,3.649]
[1728574073185,3.6484,137.18,137.14,17.53]
[1728574073686,9.0225,137.2,137.14,17.53]
[1728574073886,3.6485,137.18,137.15,3.649]
[1728574074185,3.6485,137.18,137.14,17.53]
[1728574074384,3.6485,137.18,137.15,3.649]
[1728574074777,3.6485,137.18,137.15,3.6489]
[1728574074978,3.6486,137.17,137.14,17.53]
[1728574075989,3.6481,137.19,137.16,3.6486]
[1728574076179,2.7225,137.2,137.16,3.6486]
[1728574076688,2.7225,137.2,137.15,3.6489]
[1728574076689,3.6484,137.18,137.15,3.6489]
[1728574078086,3.6481,137.19,137.16,3.6486]
[1728574078278,2.7225,137.2,137.16,3.6486]
[1728574079191,3.6482,137.19,137.16,3.6486]
[1728574079385,2.7225,137.2,137.16,3.6486]
[1728574079585,3.6481,137.19,137.16,3.6486]
[1728574079790,2.7225,137.2,137.16,3.6486]
[1728574080082,2.7225,137.2,137.15,3.6489]
[1728574080292,3.6481,137.19,137.15,3.6489]
[1728574080478,2.7225,137.2,137.15,3.6489]
[1728574080880,3.6484,137.18,137.15,3.6489]
[1728574081990,120.95421965,137.26,137.17,17.53]
[1728574082191,106.23071965,137.26,137.2,17.53]
[1728574082490,3.6468,137.24,137.21,3.6473]
[1728574083896,6.4528,137.26,137.23,3.6468]
[1728574084092,2.8065,137.26,137.2,21.2315044]
[1728574084886,2.8065,137.26,137.2,3.7015044]
[1728574085093,2.8065,137.26,137.2,17.53]
[1728574085291,3.6471,137.23,137.21,3.7263051]
[1728574086096,3.6471,137.23,137.21,7.3737051]
[1728574086293,3.6468,137.24,137.21,7.3737051]
[1728574086500,2.8065,137.26,137.21,3.7263051]
[1728574086799,2.8065,137.26,137.22,3.6469]
[1728574086994,3.6466,137.25,137.22,3.6469]
[1728574087407,0.12502,137.27,137.22,17.53]
[1728574087698,3.6462,137.26,137.22,17.53]
[1728574087894,3.6462,137.26,137.23,6.28]
[1728574088495,3.6462,137.26,137.24,3.6465]
[1728574088999,3.6462,137.26,137.23,9.9268]
[1728574089899,0.12502,137.27,137.23,6.28]
[1728574090600,3.6462,137.26,137.23,9.9268]
[1728574090799,0.12502,137.27,137.15,7.42282]
[1728574090998,0.12502,137.27,137.18,17.53]
[1728574091196,17.65502,137.27,137.18,3.71445111]
[1728574091499,2.8726,137.26,137.18,9.99445111]
[1728574091696,6.28,137.25,137.18,9.99445111]
[1728574091898,7.6933,137.25,137.19,3.6479]
[1728574092896,3.6474,137.22,137.18,3.71445111]
[1728574093093,2.8726,137.26,137.2,17.53]
[1728574093797,2.8726,137.26,137.22,3.6471]
[1728574094198,2.8726,137.26,137.2,17.53]
[1728574094397,2.8726,137.26,137.2,3.6476]
[1728574094605,2.8726,137.26,137.18,21.11886847]
[1728574095006,17.53,137.25,137.18,3.58886847]
[1728574095204,18.9266,137.25,137.18,3.58886847]
[1728574095506,18.9266,137.25,137.19,3.648]
[1728574095905,18.9266,137.25,137.18,3.58886847]
[1728574095906,22.53662452,137.25,137.18,3.58886847]
[1728574096117,3.6476,137.21,137.18,7.23696847]
[1728574097019,3.6476,137.21,137.18,3.6481]
[1728574097706,3.6476,137.21,137.17,9.97939059]
[1728574097909,18.9266,137.25,137.2,3.6476]
[1728574098117,18.9266,137.25,137.17,9.97939059]
[1728574098607,18.9266,137.25,137.19,3.6479]
[1728574099410,3.6473,137.22,137.19,3.6479]
[1728574100404,3.648,137.2,137.17,3.6484]
[1728574100608,6.28,137.24,137.17,3.6484]
[1728574101108,3.6479,137.2,137.17,3.6484]
[1728574101311,6.28,137.24,137.17,3.6484]
[1728574101612,3.6479,137.2,137.17,3.6484]
[1728574101915,6.28,137.24,137.17,3.6484]
[1728574102105,3.6479,137.2,137.17,3.6484]
[1728574102816,3.6476,137.21,137.18,3.648]
[1728574103014,6.28,137.24,137.17,17.53]
[1728574103515,3.6478,137.2,137.18,3.6481]
[1728574103912,3.6478,137.2,137.17,17.53]
[1728574104109,3.6478,137.2,137.17,21.1784]
[1728574106119,17.53,137.23,137.16,9.8370289]
[1728574106416,17.53,137.21,137.15,0.12502]
[1728574106617,2.819,137.2,137.15,0.12502]
[1728574107118,3.6488,137.16,137.15,0.12502]
[1728574108412,3.6487,137.17,137.15,0.12502]
[1728574108920,3.6488,137.16,137.15,0.12502]
[1728574116923,1.3707,137.19,137.15,0.12502]
[1728574117322,3.6483,137.18,137.15,3.77392]
[1728574118415,3.6483,137.18,137.16,3.6488]
[1728574119024,3.6483,137.18,137.15,3.77392]
[1728574119424,3.6485,137.17,137.15,3.77392]
[1728574120526,2.819,137.2,137.15,3.77392]
[1728574120718,3.6484,137.18,137.15,3.77392]
[1728574121115,2.819,137.2,137.15,0.12502]
[1728574121417,3.6482,137.19,137.15,0.12502]
[1728574121615,3.6482,137.19,137.16,3.6485]
[1728574121814,6.4668,137.2,137.15,0.12502]
[1728574122025,6.28,137.23,137.16,17.53]
[1728574122323,10.3908,137.24,137.18,3.6481]
[1728574122523,3.6476,137.21,137.18,3.6481]
[1728574122924,4.1108,137.24,137.18,3.6481]
[1728574123123,3.6478,137.2,137.18,3.6481]
[1728574123724,3.6476,137.21,137.18,3.6481]
[1728574124923,3.6478,137.2,137.18,3.6481]
[1728574125127,10.3908,137.24,137.16,3.72282678]
[1728574125332,17.53,137.23,137.15,3.77392]
[1728574125545,3.6481,137.19,137.15,0.12502]
[1728574125932,17.53,137.23,137.16,3.6486]
[1728574127849,3.6483,137.18,137.15,3.77402]
[1728574128046,17.53,137.23,137.15,0.12502]
[1728574128252,4.1108,137.24,137.16,21.09118684]
[1728574128468,3.6479,137.2,137.17,3.6483]
[1728574129262,3.648,137.19,137.17,3.6483]
[1728574131458,10.3908,137.24,137.17,3.6483]
[1728574131459,3.6479,137.2,137.17,3.6483]
[1728574132767,4.1108,137.24,137.16,21.09118684]
[1728574132965,4.1108,137.24,137.17,17.53]
[1728574133163,0.12502,137.27,137.23,17.53]
[1728574133465,0.12502,137.27,137.25,3.6463]
[1728574133958,0.12502,137.27,137.23,23.81]
[1728574134169,3.77112,137.27,137.24,3.6465]
[1728574134661,0.12502,137.27,137.23,23.81]
[1728574134967,3.6462,137.26,137.23,27.4568]
[1728574135647,3.6462,137.26,137.23,9.9268]
[1728574136170,3.6471,137.23,137.2,9.9276]
[1728574136368,3.6471,137.23,137.2,3.6476]
[1728574136556,17.65502,137.27,137.2,17.53]
[1728574136764,0.12502,137.27,137.2,17.53]
[1728574136958,3.6467,137.24,137.21,3.6473]
[1728574137467,3.6465,137.25,137.2,17.53]
[1728574138548,3.6465,137.25,137.21,17.53]
[1728574139354,0.12502,137.27,137.23,17.53]
[1728574139549,0.12502,137.27,137.23,23.81]
[1728574139953,3.77102,137.27,137.25,3.6464]
[1728574140156,0.12502,137.27,137.25,3.6464]
[1728574140855,0.12502,137.27,137.23,6.28]
[1728574141055,3.6462,137.26,137.23,6.28]
[1728574141350,0.12502,137.27,137.23,9.9268]
[1728574141642,3.6481,137.19,137.15,0.12502]
[1728574141842,6.26,137.22,137.16,3.5852634]
[1728574142037,6.26,137.22,137.16,7.2338634]
[1728574142542,3.648,137.2,137.17,3.6485]
[1728574143440,3.6485,137.18,137.15,0.12502]
[1728574143644,6.26,137.22,137.15,0.12502]
[1728574144042,3.6486,137.17,137.15,0.12502]
[1728574144245,17.53,137.21,137.15,0.12502]
[1728574144448,17.53,137.21,137.15,3.77412]
[1728574144844,3.6479,137.2,137.15,3.77412]
[1728574145039,17.53,137.21,137.15,3.77412]
[1728574145943,3.6484,137.18,137.15,3.77412]
[1728574146649,3.6484,137.18,137.15,0.12502]
[1728574148651,17.53,137.21,137.15,0.12502]
[1728574148844,17.53,137.2,137.15,0.12502]
[1728574149446,3.6488,137.16,137.15,0.12502]
[1728574159259,6.28,137.18,137.15,0.12502]
[1728574159950,3.6487,137.17,137.15,0.12502]
[1728574161757,3.6488,137.16,137.15,0.12502]
[1728574162356,3.6497,137.13,137.06,7.3028]
[1728574162652,23.81,137.18,137.09,21.36452236]
[1728574162653,2.775,137.17,137.09,21.36452236]
[1728574162853,6.35093838,137.17,137.09,21.36452236]
[1728574163054,17.53,137.16,137.09,0.12502]
[1728574163859,3.63966812,137.15,137.09,3.77562]
[1728574164357,3.6504,137.1,137.09,0.12502]
[1728574164655,6.28,137.14,137.09,0.12502]
[1728574165159,3.6504,137.1,137.09,0.12502]
[1728574167758,3.6499,137.12,137.09,3.77542]
[1728574168563,3.6497,137.13,137.1,3.6503]
[1728574169061,3.6497,137.13,137.09,17.65502]
[1728574169767,3.6497,137.13,137.1,3.6503]
[1728574170959,1.3376,137.14,137.09,0.12502]
[1728574171970,3.6504,137.1,137.09,0.12502]
[1728574177975,6.3962,137.11,137.09,0.12502]
[1728574178382,2.7458,137.11,137.09,0.12502]
[1728574178771,6.3961,137.11,137.09,0.12502]
[1728574178973,2.7458,137.11,137.09,0.12502]
[1728574180471,3.6504,137.1,137.09,0.12502]
[1728574182979,3.6497,137.13,137.1,3.6502]
[1728574183175,29.1964,137.19,137.1,3.6502]
[1728574183176,9.0155,137.16,137.1,17.53]
[1728574183576,3.6492,137.15,137.12,3.6497]
[1728574183777,2.7555,137.16,137.1,17.53]
[1728574183981,2.7555,137.16,137.09,17.65502]
[1728574184778,3.6499,137.12,137.09,21.30552]
[1728574184983,3.6499,137.12,137.1,11.22]
[1728574186588,3.6499,137.12,137.09,3.77552]
[1728574187484,3.6499,137.12,137.09,0.12502]
[1728574187686,3.6499,137.12,137.1,3.6504]
[1728574187883,3.6503,137.11,137.09,0.12502]
[1728574188487,3.6503,137.11,137.09,3.77552]
[1728574190486,3.65,137.12,137.1,3.6503]
[1728574195695,3.6493,137.14,137.12,3.6498]
[1728574195890,2.7555,137.16,137.1,17.54]
[1728574196295,3.6496,137.14,137.11,3.65]
[1728574196490,2.7555,137.16,137.11,3.65]
[1728574196888,3.6495,137.14,137.11,3.65]
[1728574197089,2.7555,137.16,137.11,3.65]
[1728574197991,3.6496,137.13,137.11,3.65]
[1728574198691,3.6496,137.13,137.1,17.54]
[1728574198892,3.6499,137.12,137.1,17.54]
[1728574200393,2.7555,137.16,137.1,17.54]
[1728574200596,2.7555,137.16,137.09,0.12502]
[1728574201292,3.6501,137.12,137.09,0.12502]
[1728574202497,3.6503,137.11,137.09,0.12502]
[1728574203199,3.6504,137.1,137.09,0.12502]
[1728574203792,3.6502,137.11,137.09,0.12502]
[1728574204197,2.7555,137.16,137.11,3.6501]
[1728574204693,2.7555,137.16,137.1,17.54]
[1728574204898,2.7555,137.16,137.1,21.1903]
[1728574205191,2.7555,137.16,137.1,17.54]
[1728574205397,2.7555,137.16,137.09,21.31552]
[1728574205789,2.7555,137.16,137.09,17.66502]
[1728574205790,20.2955,137.16,137.09,17.66502]
[1728574205987,20.2955,137.16,137.09,0.12502]
[1728574206191,27.5932,137.16,137.09,0.12502]
[1728574206392,3.6504,137.1,137.09,0.12502]
[1728574206901,27.5932,137.16,137.09,0.12502]
[1728574207101,3.6503,137.11,137.09,0.12502]
[1728574207307,27.5932,137.16,137.09,17.66502]
[1728574207496,3.6501,137.12,137.09,21.31552]
[1728574207698,27.5932,137.16,137.09,17.66502]
[1728574208005,3.6493,137.14,137.09,17.66502]
[1728574208206,27.5932,137.16,137.09,17.66502]
[1728574208398,11.22,137.15,137.1,11.22]
[1728574208706,3.6502,137.11,137.1,11.22]
[1728574209001,2.7555,137.16,137.1,11.22]
[1728574209200,3.6493,137.15,137.13,11.22]
[1728574209599,2.7555,137.16,137.13,11.22]
[1728574209806,3.6493,137.14,137.13,11.22]
[1728574211099,2.7555,137.16,137.13,11.22]
[1728574211295,3.6492,137.15,137.13,11.22]
[1728574211491,3.6492,137.15,137.11,3.6501]
[1728574211492,1.4272,137.18,137.14,11.22]
[1728574211693,9.1357,137.2,137.11,6.26]
[1728574211895,3.649,137.16,137.14,11.22]
[1728574212099,3.649,137.16,137.14,14.87147867]
[1728574212300,11.22,137.19,137.14,14.87147867]
[1728574212609,3.6486,137.17,137.14,14.87147867]
[1728574214609,3.6486,137.17,137.14,18.52077867]
[1728574215209,3.6486,137.17,137.16,11.22]
[1728574215411,15.5289,137.2,137.16,11.22]
[1728574215900,11.22,137.19,137.14,14.87147867]
[1728574216310,11.22,137.19,137.13,14.8695]
[1728574216706,3.6488,137.16,137.13,14.8695]
[1728574217009,3.6488,137.16,137.13,18.56367535]
[1728574220310,3.6488,137.16,137.15,11.22]
[1728574220510,3.6487,137.17,137.15,11.22]
[1728574221117,4.3089,137.2,137.15,11.22]
[1728574221309,3.6483,137.18,137.16,11.22]
[1728574222115,4.3089,137.2,137.17,11.22]
[1728574222116,3.6482,137.19,137.17,11.22]
[1728574222316,0.12502,137.21,137.18,11.22]
[1728574222506,0.12502,137.21,137.2,14.8677]
[1728574222818,0.12502,137.27,137.2,17.48]
[1728574223011,0.12502,137.27,137.26,11.22]
[1728574223218,0.12502,137.27,137.2,6.26]
[1728574223418,11.34502,137.27,137.22,11.22]
[1728574223813,3.6469,137.24,137.21,11.22]
[1728574224616,0.12502,137.27,137.2,27.48898388]
[1728574224815,0.12502,137.27,137.21,17.51]
[1728574225014,0.12502,137.27,137.23,3.6468]
[1728574225214,0.12502,137.27,137.21,17.51]
[1728574225412,3.77102,137.27,137.21,17.51]
[1728574225822,3.77102,137.27,137.24,3.6465]
[1728574226018,0.12502,137.27,137.23,17.51]
[1728574226412,0.12502,137.27,137.26,3.6461]
[1728574227322,0.12502,137.27,137.24,9.9065]
[1728574227621,0.12502,137.27,137.24,6.26]
[1728574227923,3.77102,137.27,137.24,9.9067]
[1728574229315,3.6463,137.26,137.23,21.1569]
[1728574229516,3.6463,137.26,137.24,6.26]
[1728574229724,0.12502,137.27,137.24,6.26]
[1728574230023,3.6461,137.26,137.24,6.26]
[1728574230415,3.6461,137.26,137.22,17.51]
[1728574230617,3.6461,137.26,137.23,3.6469]
[1728574231919,0.12502,137.27,137.24,17.51]
[1728574232417,0.12502,137.27,137.22,6.24]
[1728574232621,0.12502,137.27,137.22,23.75]
[1728574233323,3.6462,137.26,137.23,3.6468]
[1728574233914,3.6468,137.24,137.22,23.75]
[1728574234119,0.12502,137.27,137.22,23.75]
[1728574234620,3.6464,137.26,137.23,3.6469]
[1728574235720,3.6465,137.25,137.23,3.6469]
[1728574237421,3.6463,137.26,137.23,3.6469]
[1728574237728,0.12502,137.27,137.24,17.51]
[1728574238025,3.77102,137.27,137.25,3.6464]
[1728574238726,0.12502,137.27,137.26,3.6461]
[1728574241124,0.12502,137.27,137.26,9.8861]
[1728574246433,0.12502,137.27,137.26,21.0961]
[1728574249235,3.645,137.31,137.29,3.6453]
[1728574249430,3.645,137.31,137.29,14.8553]
[1728574250138,3.645,137.31,137.29,18.51435535]
[1728574250339,3.6451,137.3,137.28,3.6455]
[1728574250542,11.21,137.32,137.27,11.21]
[1728574250841,11.21,137.3,137.21,1.46152]
[1728574251041,11.21,137.3,137.25,11.21]
[1728574251235,2.8462,137.29,137.25,11.21]
[1728574251541,3.6459,137.27,137.25,11.21]
[1728574252539,3.6459,137.27,137.23,17.5]
[1728574253241,3.6461,137.26,137.24,3.6465]
[1728574254643,3.6464,137.25,137.23,27.3868]
[1728574254833,2.8462,137.29,137.23,23.74]
[1728574255037,3.6462,137.26,137.24,3.6467]
[1728574255443,2.8462,137.29,137.23,23.74]
[1728574255648,3.646,137.27,137.23,23.74]
[1728574256337,3.646,137.27,137.24,3.6464]
[1728574256855,2.8462,137.29,137.23,6.24]
[1728574257441,2.8462,137.29,137.23,3.6467]
[1728574257641,2.8462,137.29,137.25,17.5]
[1728574258043,3.646,137.27,137.25,17.5]
[1728574259035,3.6457,137.28,137.25,17.5]
[1728574259449,2.8462,137.29,137.25,17.5]
[1728574259645,2.8462,137.29,137.24,3.6466]
[1728574259953,2.8462,137.29,137.23,17.5]
[1728574260249,2.8462,137.29,137.23,27.3668]
[1728574260542,3.6463,137.26,137.23,27.3668]
[1728574260735,2.8462,137.29,137.23,21.1469]
[1728574262153,3.6463,137.26,137.23,21.1469]
[1728574262743,3.6467,137.24,137.22,9.8671]
[1728574263648,3.6465,137.25,137.22,9.8671]
[1728574264648,3.6467,137.24,137.22,9.8671]
[1728574265544,3.6467,137.24,137.22,3.6471]
[1728574266241,20.3462,137.29,137.21,0.12502]
[1728574266444,3.6472,137.22,137.21,0.12502]
[1728574270963,2.8135,137.24,137.21,0.12502]
[1728574271256,39.4,137.22,137.04,6.22]
[1728574271455,17.5,137.19,137.09,17.62502]
[1728574271658,3.6489,137.16,137.13,3.6496]
[1728574271848,2.8115,137.18,137.11,17.5]
[1728574272252,3.6487,137.17,137.13,3.6494]
[1728574272461,3.6487,137.17,137.14,11.22]
[1728574272964,2.8115,137.18,137.14,11.22]
[1728574272965,3.6489,137.16,137.14,11.22]
[1728574273254,14.0315,137.18,137.09,3.81774931]
[1728574273455,3.6495,137.14,137.12,11.22]
[1728574274357,11.22,137.16,137.1,17.44]
[1728574274757,2.8115,137.18,137.12,11.22]
[1728574275063,3.6495,137.14,137.12,11.22]
[1728574276859,3.6503,137.11,137.09,0.12502]
[1728574277154,11.22,137.13,137.09,0.12502]
[1728574277357,3.65,137.12,137.09,0.12502]
[1728574277760,11.22,137.13,137.09,0.12502]
[1728574277963,3.6499,137.12,137.09,0.12502]
[1728574278154,11.22,137.13,137.09,0.12502]
[1728574278656,3.6501,137.12,137.09,11.34502]
[1728574278956,3.6498,137.13,137.1,3.6503]
[1728574279257,3.6498,137.13,137.11,11.22]
[1728574279461,3.6499,137.12,137.1,11.22]
[1728574281657,11.22,137.15,137.09,0.12502]
[1728574281862,11.22,137.13,137.09,0.12502]
[1728574282058,2.6652,137.12,137.09,0.12502]
[1728574282869,3.6504,137.1,137.09,0.12502]
[1728574283066,11.22,137.1,137.01,4.2993]
[1728574283256,3.652,137.04,137.01,7.30660404]
[1728574283455,11.22,137.07,137.02,11.22]
[1728574283872,3.652,137.04,137.02,11.22]
[1728574284162,3.652,137.04,137.01,3.65400404]
[1728574284368,3.652,137.04,136.98,6.24]
[1728574284664,11.22,137.07,137.02,11.22]
[1728574284961,3.652,137.04,137.02,11.22]
[1728574285257,3.7007239,137.1,137.03,11.34502]
[1728574285461,6.24,137.1,137.06,11.22]
[1728574285661,3.6512,137.07,137.06,11.22]
[1728574285859,11.22,137.1,137.05,11.22]
[1728574286260,3.6515,137.06,137.05,11.22]
[1728574286463,3.6515,137.06,137.03,7.45703897]
[1728574287466,27.43167074,137.11,137.03,3.80493897]
[1728574287663,27.43167074,137.11,137.04,3.6518]
[1728574288367,3.6512,137.07,137.04,3.6518]
[1728574288960,3.6508,137.09,137.06,3.6513]
[1728574289272,7.6572,137.11,137.04,17.52]
[1728574289668,3.6511,137.08,137.04,17.52]
[1728574289866,7.6572,137.11,137.04,17.52]
[1728574290462,25.1772,137.11,137.03,0.12502]
[1728574290867,25.1772,137.11,137.03,3.77712]
[1728574291564,3.6514,137.07,137.03,3.77712]
[1728574292565,25.1772,137.11,137.03,3.77712]
[1728574292767,18.9372,137.11,137.03,0.12502]
[1728574293069,2.6652,137.12,137.08,17.52]
[1728574293272,2.6652,137.12,137.03,0.12502]
[1728574293273,1.56782,137.15,137.09,17.52]
[1728574293967,1.56782,137.15,137.09,3.67486015]
[1728574294162,1.56782,137.15,137.03,0.12502]
[1728574294163,19.08782,137.15,137.07,6.22]
[1728574294363,3.6504,137.11,137.07,6.22]
[1728574294560,6.22,137.14,137.07,9.871]
[1728574294764,6.22,137.14,137.07,6.22]
[1728574295270,6.22,137.14,137.07,9.871]
[1728574295473,6.22,137.14,137.07,3.651]
[1728574296370,6.22,137.14,137.08,3.6509]
[1728574296567,6.22,137.14,137.08,17.52]